[Event "Late-Titled-Tuesday-Blitz-September-12-2023"]
[Site "Chess.com"]
[Date "2023.09.12"]
[Round "11"]
[White "tactic"]
[Black "picturesquecheck"]
[Result "1-0"]
[WhiteElo "2608"]
[BlackElo "2340"]
[TimeControl "180+1"]
[EndTime "16:01:41 PDT"]
[Termination "tactic won by resignation"]

1. e4 {[%clk 0:03:00.9]} 1... e5 {[%clk 0:02:55.7]} 2. Nf3 {[%clk 0:03:00.9]}
2... Nc6 {[%clk 0:02:50.7]} 3. Bc4 {[%clk 0:03:01.2]} 3... Bc5 {[%clk
0:02:47.7]} 4. d4 {[%clk 0:03:01.3]} 4... exd4 {[%clk 0:02:47.5]} 5. c3 {[%clk
0:03:01.6]} 5... Nf6 {[%clk 0:02:47.4]} 6. e5 {[%clk 0:03:01.4]} 6... d5 {[%clk
0:02:47.5]} 7. Bb5 {[%clk 0:03:02]} 7... Ne4 {[%clk 0:02:45.5]} 8. cxd4 {[%clk
0:03:02.1]} 8... Bb6 {[%clk 0:02:46]} 9. Nc3 {[%clk 0:02:54.7]} 9... O-O {[%clk
0:02:43.7]} 10. Be3 {[%clk 0:02:50.5]} 10... Bg4 {[%clk 0:02:42.5]} 11. Qc2
{[%clk 0:02:46.2]} 11... Bf5 {[%clk 0:02:39.2]} 12. Qa4 {[%clk 0:02:23.2]} 12...
Ne7 {[%clk 0:02:23.1]} 13. O-O {[%clk 0:02:22.5]} 13... c6 {[%clk 0:02:19.5]}
14. Be2 {[%clk 0:02:21.2]} 14... Bg6 {[%clk 0:02:18.2]} 15. Nxe4 {[%clk
0:01:45.9]} 15... dxe4 {[%clk 0:02:13.2]} 16. Nd2 {[%clk 0:01:46.1]} 16... Nd5
{[%clk 0:02:04.8]} 17. Qb3 {[%clk 0:01:43.4]} 17... Re8 {[%clk 0:01:58.6]} 18.
Rfd1 {[%clk 0:01:40.9]} 18... Nxe3 {[%clk 0:01:56.6]} 19. fxe3 {[%clk
0:01:40.6]} 19... Qg5 {[%clk 0:01:54]} 20. Nc4 {[%clk 0:01:29.4]} 20... Rad8
{[%clk 0:01:48.9]} 21. Nd6 {[%clk 0:01:04.4]} 21... Re7 {[%clk 0:01:43.9]} 22.
Bc4 {[%clk 0:01:04.2]} 22... Kh8 {[%clk 0:01:34.1]} 23. Rf1 {[%clk 0:00:46.1]}
23... f6 {[%clk 0:01:20.5]} 24. Bf7 {[%clk 0:00:19.8]} 24... Rf8 {[%clk
0:01:10.8]} 25. Bxg6 {[%clk 0:00:15.4]} 25... Qxg6 {[%clk 0:01:05.7]} 26. Nf5
{[%clk 0:00:14.8]} 26... Ree8 {[%clk 0:01:02.4]} 27. e6 {[%clk 0:00:15.4]} 27...
Qg5 {[%clk 0:00:51.9]} 28. Nd6 {[%clk 0:00:13.7]} 28... Re7 {[%clk 0:00:36.6]}
29. Nf7+ {[%clk 0:00:14.2]} 29... Rexf7 {[%clk 0:00:33.9]} 30. exf7 {[%clk
0:00:15.1]} 30... h6 {[%clk 0:00:30.9]} 31. Rf4 {[%clk 0:00:13.4]} 31... Qg6
{[%clk 0:00:29.7]} 32. a4 {[%clk 0:00:10.5]} 32... Rxf7 {[%clk 0:00:29.6]} 33.
Rxe4 {[%clk 0:00:10.8]} 33... Qxe4 {[%clk 0:00:28.8]} 34. Qxf7 {[%clk
0:00:11.3]} 34... Qxe3+ {[%clk 0:00:29.1]} 35. Kh1 {[%clk 0:00:12]} 35... Bxd4
{[%clk 0:00:27.1]} 36. Rd1 {[%clk 0:00:10.3]} 36... Kh7 {[%clk 0:00:24.8]} 37.
Qc4 {[%clk 0:00:09.1]} 37... c5 {[%clk 0:00:21.5]} 38. b4 {[%clk 0:00:09.1]}
38... b6 {[%clk 0:00:21]} 39. h3 {[%clk 0:00:08.7]} 39... Qg3 {[%clk 0:00:20.4]}
40. Qc2+ {[%clk 0:00:06.1]} 40... Qg6 {[%clk 0:00:18.1]} 41. Qc4 {[%clk
0:00:05.6]} 41... Qg3 {[%clk 0:00:17.5]} 42. Qc2+ {[%clk 0:00:05.8]} 42... Qg6
{[%clk 0:00:17.8]} 43. Qe2 {[%clk 0:00:03.8]} 43... Be5 {[%clk 0:00:16.4]} 44.
bxc5 {[%clk 0:00:03.5]} 44... bxc5 {[%clk 0:00:16.1]} 45. Qf2 {[%clk 0:00:03.5]}
45... Qh5 {[%clk 0:00:14.8]} 46. Qc2+ {[%clk 0:00:03.3]} 46... Qg6 {[%clk
0:00:14.4]} 47. Qxc5 {[%clk 0:00:03.8]} 47... Qg3 {[%clk 0:00:13.9]} 48. Qc2+
{[%clk 0:00:04.5]} 48... Qg6 {[%clk 0:00:09]} 49. Qxg6+ {[%clk 0:00:04.3]} 49...
Kxg6 {[%clk 0:00:09.9]} 50. a5 {[%clk 0:00:04.4]} 50... Bc3 {[%clk 0:00:09.8]}
51. a6 {[%clk 0:00:04.5]} 51... Ba5 {[%clk 0:00:10.2]} 52. Rd6 {[%clk
0:00:04.4]} 52... Bb4 {[%clk 0:00:09.8]} 53. Rc6 {[%clk 0:00:04.5]} 53... Bd2
{[%clk 0:00:09.6]} 54. Re6 {[%clk 0:00:04.3]} 54... Bc3 {[%clk 0:00:09.7]} 55.
Rd6 {[%clk 0:00:04.6]} 55... Bb4 {[%clk 0:00:09.6]} 56. Rd7 {[%clk 0:00:04.7]}
56... Bc5 {[%clk 0:00:09.9]} 57. Rc7 {[%clk 0:00:05.4]} 57... Bd4 {[%clk
0:00:10]} 58. Rd7 {[%clk 0:00:05.7]} 58... Bb6 {[%clk 0:00:10.3]} 59. Rd6 {[%clk
0:00:06.4]} 59... Bc5 {[%clk 0:00:10.6]} 60. Rc6 {[%clk 0:00:07]} 60... Bd4
{[%clk 0:00:11.2]} 61. Kh2 {[%clk 0:00:07.4]} 61... Be5+ {[%clk 0:00:10.9]} 62.
g3 {[%clk 0:00:07.8]} 62... Bd4 {[%clk 0:00:11.8]} 63. Kg2 {[%clk 0:00:08.4]}
63... Kh5 {[%clk 0:00:12.1]} 64. Kf3 {[%clk 0:00:09]} 64... g5 {[%clk
0:00:12.5]} 65. Ke4 {[%clk 0:00:07.2]} 65... Bf2 {[%clk 0:00:11.8]} 66. g4+
{[%clk 0:00:06.9]} 66... Kh4 {[%clk 0:00:11.9]} 67. Rxf6 {[%clk 0:00:07.7]}
67... Kxh3 {[%clk 0:00:12.4]} 68. Rxf2 {[%clk 0:00:07.8]} 68... Kxg4 {[%clk
0:00:12.5]} 69. Rf7 {[%clk 0:00:08.3]} 69... h5 {[%clk 0:00:13.3]} 70. Rxa7
{[%clk 0:00:08.9]} 1-0

[Event "Late-Titled-Tuesday-Blitz-September-12-2023"]
[Site "Chess.com"]
[Date "2023.09.12"]
[Round "11"]
[White "Nekoo04"]
[Black "Atanejhad"]
[Result "1-0"]
[WhiteElo "2296"]
[BlackElo "2392"]
[TimeControl "180+1"]
[EndTime "16:01:58 PDT"]
[Termination "Nekoo04 won on time"]

1. d4 {[%clk 0:02:59.8]} 1... Nf6 {[%clk 0:02:59.1]} 2. c4 {[%clk 0:02:55.8]}
2... g6 {[%clk 0:02:59.4]} 3. Nc3 {[%clk 0:02:55.4]} 3... Bg7 {[%clk 0:02:59.9]}
4. e4 {[%clk 0:02:55.6]} 4... d6 {[%clk 0:03:00.5]} 5. Nf3 {[%clk 0:02:56.2]}
5... O-O {[%clk 0:03:00.8]} 6. Be2 {[%clk 0:02:56.9]} 6... e5 {[%clk 0:03:01.1]}
7. d5 {[%clk 0:02:57.2]} 7... Nbd7 {[%clk 0:03:01]} 8. O-O {[%clk 0:02:53.9]}
8... Nc5 {[%clk 0:03:00.8]} 9. Qc2 {[%clk 0:02:53.9]} 9... a5 {[%clk 0:03:01.2]}
10. Bg5 {[%clk 0:02:54.1]} 10... h6 {[%clk 0:03:00.3]} 11. Be3 {[%clk
0:02:54.7]} 11... b6 {[%clk 0:02:56.6]} 12. Nd2 {[%clk 0:02:54.4]} 12... Ng4
{[%clk 0:02:54.2]} 13. Bxg4 {[%clk 0:02:52.8]} 13... Bxg4 {[%clk 0:02:54.5]} 14.
a3 {[%clk 0:02:44.2]} 14... f5 {[%clk 0:02:17.1]} 15. f3 {[%clk 0:02:29.6]}
15... Bh5 {[%clk 0:02:16.5]} 16. b4 {[%clk 0:02:29.1]} 16... Nd7 {[%clk
0:02:14.7]} 17. Na4 {[%clk 0:02:23.5]} 17... f4 {[%clk 0:02:06.7]} 18. Bf2
{[%clk 0:02:23.1]} 18... g5 {[%clk 0:02:05.5]} 19. h3 {[%clk 0:02:20.8]} 19...
Be8 {[%clk 0:01:50.9]} 20. c5 {[%clk 0:02:19.7]} 20... axb4 {[%clk 0:01:40.7]}
21. axb4 {[%clk 0:02:17.7]} 21... bxc5 {[%clk 0:01:40.5]} 22. bxc5 {[%clk
0:02:17.4]} 22... h5 {[%clk 0:01:39.7]} 23. cxd6 {[%clk 0:02:03.1]} 23... cxd6
{[%clk 0:01:40.6]} 24. Nc4 {[%clk 0:02:03.3]} 24... Qf6 {[%clk 0:01:26.7]} 25.
Nab6 {[%clk 0:01:50.6]} 25... Nxb6 {[%clk 0:01:25.2]} 26. Nxb6 {[%clk
0:01:48.5]} 26... Rxa1 {[%clk 0:01:25.7]} 27. Rxa1 {[%clk 0:01:47.5]} 27... g4
{[%clk 0:01:26.3]} 28. hxg4 {[%clk 0:01:35.5]} 28... hxg4 {[%clk 0:01:27.2]} 29.
fxg4 {[%clk 0:01:28.3]} 29... Qg5 {[%clk 0:01:13.8]} 30. Qc8 {[%clk 0:01:24.4]}
30... Qg6 {[%clk 0:00:44]} 31. Qe6+ {[%clk 0:00:51.9]} 31... Kh8 {[%clk
0:00:41]} 32. Ra8 {[%clk 0:00:46.1]} 32... Bf7 {[%clk 0:00:35.9]} 33. Rxf8+
{[%clk 0:00:35]} 33... Bxf8 {[%clk 0:00:36.8]} 34. Qf5 {[%clk 0:00:29]} 34...
Qg7 {[%clk 0:00:20.6]} 35. Bh4 {[%clk 0:00:26.1]} 35... Bg6 {[%clk 0:00:20.6]}
36. Bf6 {[%clk 0:00:21]} 36... Bxf5 {[%clk 0:00:17.6]} 37. Bxg7+ {[%clk
0:00:21.2]} 37... Kxg7 {[%clk 0:00:18.2]} 38. gxf5 {[%clk 0:00:20.9]} 38... Kf6
{[%clk 0:00:18.2]} 39. Kf2 {[%clk 0:00:21]} 39... Be7 {[%clk 0:00:16.9]} 40. Kf3
{[%clk 0:00:19.6]} 40... Kg5 {[%clk 0:00:16.1]} 41. Nc8 {[%clk 0:00:18.8]} 41...
Bf8 {[%clk 0:00:16]} 42. g3 {[%clk 0:00:18.8]} 42... fxg3 {[%clk 0:00:15]} 43.
Kxg3 {[%clk 0:00:19.7]} 43... Kh5 {[%clk 0:00:15.1]} 44. Nb6 {[%clk 0:00:16.4]}
44... Kg5 {[%clk 0:00:15.6]} 45. Kf3 {[%clk 0:00:15.5]} 45... Kh5 {[%clk
0:00:14.2]} 46. Nd7 {[%clk 0:00:15.2]} 46... Bh6 {[%clk 0:00:12.9]} 47. Nf6+
{[%clk 0:00:14.1]} 47... Kg5 {[%clk 0:00:12.3]} 48. Nd7 {[%clk 0:00:08]} 48...
Kh5 {[%clk 0:00:11]} 49. Nf6+ {[%clk 0:00:07.1]} 49... Kg5 {[%clk 0:00:10.9]}
50. Ne8 {[%clk 0:00:05.8]} 50... Bf8 {[%clk 0:00:10]} 51. Nc7 {[%clk 0:00:06.3]}
51... Kf6 {[%clk 0:00:09.2]} 52. Kg4 {[%clk 0:00:06.5]} 52... Bh6 {[%clk
0:00:09.1]} 53. Kh5 {[%clk 0:00:03.9]} 53... Bd2 {[%clk 0:00:08.2]} 54. Ne8+
{[%clk 0:00:04]} 54... Ke7 {[%clk 0:00:07.5]} 55. Ng7 {[%clk 0:00:03.2]} 55...
Kf6 {[%clk 0:00:06.6]} 56. Ne6 {[%clk 0:00:03.4]} 56... Be3 {[%clk 0:00:05]} 57.
Nc7 {[%clk 0:00:03.1]} 57... Bc1 {[%clk 0:00:04.5]} 58. Nb5 {[%clk 0:00:03.3]}
58... Ke7 {[%clk 0:00:01.7]} 59. Kg6 {[%clk 0:00:03.8]} 1-0

[Event "Late-Titled-Tuesday-Blitz-September-12-2023"]
[Site "Chess.com"]
[Date "2023.09.12"]
[Round "11"]
[White "jaskol95"]
[Black "kingofthenil"]
[Result "0-1"]
[WhiteElo "2553"]
[BlackElo "2794"]
[TimeControl "180+1"]
[EndTime "16:02:09 PDT"]
[Termination "kingofthenil won by checkmate"]

1. d4 {[%clk 0:03:00.9]} 1... d6 {[%clk 0:02:56.8]} 2. e4 {[%clk 0:02:59.3]}
2... Nf6 {[%clk 0:02:57.7]} 3. Nc3 {[%clk 0:02:59.2]} 3... Nc6 {[%clk
0:02:58.6]} 4. d5 {[%clk 0:02:55.7]} 4... Nb8 {[%clk 0:02:58.5]} 5. Nf3 {[%clk
0:02:55]} 5... g6 {[%clk 0:02:59.4]} 6. Bg5 {[%clk 0:02:54.4]} 6... Bg7 {[%clk
0:02:59.8]} 7. Qd2 {[%clk 0:02:55]} 7... h6 {[%clk 0:03:00.5]} 8. Be3 {[%clk
0:02:53.9]} 8... c6 {[%clk 0:03:01.4]} 9. O-O-O {[%clk 0:02:49.9]} 9... Qa5
{[%clk 0:03:00.9]} 10. Kb1 {[%clk 0:02:45.6]} 10... Bg4 {[%clk 0:02:57.5]} 11.
Bc4 {[%clk 0:02:43.1]} 11... Nbd7 {[%clk 0:02:55.9]} 12. Bb3 {[%clk 0:02:37.1]}
12... Nc5 {[%clk 0:02:54.1]} 13. Bxc5 {[%clk 0:02:35.2]} 13... Qxc5 {[%clk
0:02:55]} 14. e5 {[%clk 0:02:25.7]} 14... dxe5 {[%clk 0:02:53.4]} 15. dxc6
{[%clk 0:02:18.6]} 15... bxc6 {[%clk 0:02:36.5]} 16. Rhe1 {[%clk 0:01:47.8]}
16... Bxf3 {[%clk 0:02:35.6]} 17. gxf3 {[%clk 0:01:47.8]} 17... O-O {[%clk
0:02:35.5]} 18. f4 {[%clk 0:01:45]} 18... Nd5 {[%clk 0:01:37.8]} 19. Nxd5 {[%clk
0:01:37.7]} 19... cxd5 {[%clk 0:01:37]} 20. fxe5 {[%clk 0:01:28.1]} 20... e6
{[%clk 0:01:37.4]} 21. f4 {[%clk 0:01:23.9]} 21... a5 {[%clk 0:01:37.6]} 22. c3
{[%clk 0:01:23.7]} 22... a4 {[%clk 0:01:37.6]} 23. Bc2 {[%clk 0:01:24]} 23... a3
{[%clk 0:01:38.2]} 24. b3 {[%clk 0:01:22.6]} 24... Rfc8 {[%clk 0:01:36.9]} 25.
Re3 {[%clk 0:01:22.5]} 25... Ra7 {[%clk 0:01:34.8]} 26. Rg1 {[%clk 0:01:09.4]}
26... Rac7 {[%clk 0:01:33.7]} 27. f5 {[%clk 0:00:55.9]} 27... exf5 {[%clk
0:01:26.6]} 28. e6 {[%clk 0:00:56.4]} 28... d4 {[%clk 0:01:22.6]} 29. exf7+
{[%clk 0:00:56.2]} 29... Kxf7 {[%clk 0:01:15.9]} 30. Reg3 {[%clk 0:00:51.7]}
30... dxc3 {[%clk 0:01:09.4]} 31. Qg2 {[%clk 0:00:29.1]} 31... g5 {[%clk
0:01:09.1]} 32. h4 {[%clk 0:00:26.3]} 32... Re7 {[%clk 0:00:36.4]} 33. hxg5
{[%clk 0:00:24.1]} 33... Rce8 {[%clk 0:00:36.4]} 34. Qh1 {[%clk 0:00:10.8]}
34... Qf2 {[%clk 0:00:30.5]} 35. Qd5+ {[%clk 0:00:08.4]} 35... Kf8 {[%clk
0:00:30.8]} 36. Qxf5+ {[%clk 0:00:05.8]} 36... Qxf5 {[%clk 0:00:24.1]} 37. Bxf5
{[%clk 0:00:06.7]} 37... Re1+ {[%clk 0:00:23.3]} 38. Rxe1 {[%clk 0:00:06.6]}
38... Rxe1+ {[%clk 0:00:24.2]} 39. Kc2 {[%clk 0:00:06.7]} 39... Re2+ {[%clk
0:00:25.1]} 40. Kd3 {[%clk 0:00:07.3]} 40... Rxa2 {[%clk 0:00:21]} 41. gxh6
{[%clk 0:00:07.6]} 41... Rd2+ {[%clk 0:00:18.2]} 42. Kc4 {[%clk 0:00:05.1]}
42... Bxh6 {[%clk 0:00:12.1]} 43. Rxc3 {[%clk 0:00:03.4]} 43... a2 {[%clk
0:00:12.6]} 44. Rc1 {[%clk 0:00:03.4]} 44... Bg7 {[%clk 0:00:12.6]} 45. b4
{[%clk 0:00:02.5]} 45... Bb2 {[%clk 0:00:11.2]} 46. Re1 {[%clk 0:00:02.4]} 46...
a1=Q {[%clk 0:00:10.7]} 47. Rxa1 {[%clk 0:00:02.8]} 47... Bxa1 {[%clk
0:00:11.6]} 48. b5 {[%clk 0:00:03.5]} 48... Bd4 {[%clk 0:00:12.3]} 49. Kd5
{[%clk 0:00:03.5]} 49... Ke7 {[%clk 0:00:11.4]} 50. Kc6 {[%clk 0:00:03.5]} 50...
Rf2 {[%clk 0:00:10]} 51. Be4 {[%clk 0:00:02]} 51... Rf6+ {[%clk 0:00:10.1]} 52.
Kc7 {[%clk 0:00:02.3]} 52... Bb6+ {[%clk 0:00:09.8]} 53. Kb7 {[%clk 0:00:02.8]}
53... Kd8 {[%clk 0:00:08]} 54. Bc6 {[%clk 0:00:03.3]} 54... Bc5 {[%clk
0:00:08.4]} 55. Kb8 {[%clk 0:00:03]} 55... Rf7 {[%clk 0:00:07.5]} 56. Ka8 {[%clk
0:00:02.7]} 56... Ra7+ {[%clk 0:00:07]} 57. Kb8 {[%clk 0:00:03.3]} 57... Ra5
{[%clk 0:00:07.5]} 58. Kb7 {[%clk 0:00:03]} 58... Ra3 {[%clk 0:00:06.9]} 59. Kb8
{[%clk 0:00:02.6]} 59... Rb3 {[%clk 0:00:03.7]} 60. Kb7 {[%clk 0:00:03.2]} 60...
Ke7 {[%clk 0:00:04.1]} 61. Kc7 {[%clk 0:00:03.2]} 61... Rc3 {[%clk 0:00:03.5]}
62. Kb7 {[%clk 0:00:03.5]} 62... Kd6 {[%clk 0:00:03.3]} 63. Kc8 {[%clk
0:00:03.4]} 63... Bb6 {[%clk 0:00:03]} 64. Kb7 {[%clk 0:00:04]} 64... Kc5 {[%clk
0:00:03.3]} 65. Ka6 {[%clk 0:00:04.5]} 65... Re3 {[%clk 0:00:04.2]} 66. Kb7
{[%clk 0:00:04.9]} 66... Re7+ {[%clk 0:00:04.9]} 67. Kb8 {[%clk 0:00:05.2]}
67... Kd6 {[%clk 0:00:04.6]} 68. Kc8 {[%clk 0:00:05.6]} 68... Rc7+ {[%clk
0:00:03.6]} 69. Kb8 {[%clk 0:00:06.1]} 69... Ba7+ {[%clk 0:00:02.6]} 70. Ka8
{[%clk 0:00:05.9]} 70... Be3 {[%clk 0:00:03.5]} 71. Kb8 {[%clk 0:00:06.4]} 71...
Bf4 {[%clk 0:00:03.9]} 72. Ka8 {[%clk 0:00:06.8]} 72... Kc5 {[%clk 0:00:04.3]}
73. Kb8 {[%clk 0:00:06.9]} 73... Kb6 {[%clk 0:00:04.6]} 74. Bb7 {[%clk
0:00:05.9]} 74... Rxb7+ {[%clk 0:00:03.1]} 75. Ka8 {[%clk 0:00:06.8]} 75... Rb8#
{[%clk 0:00:03.1]} 0-1

[Event "Late-Titled-Tuesday-Blitz-September-12-2023"]
[Site "Chess.com"]
[Date "2023.09.12"]
[Round "11"]
[White "artin10862"]
[Black "Msb2"]
[Result "1/2-1/2"]
[WhiteElo "2980"]
[BlackElo "3088"]
[TimeControl "180+1"]
[EndTime "16:02:39 PDT"]
[Termination "Game drawn - insufficient material"]

1. Nf3 {[%clk 0:03:00.9]} 1... d5 {[%clk 0:03:00.1]} 2. d4 {[%clk 0:03:01.2]}
2... e6 {[%clk 0:03:00.5]} 3. c4 {[%clk 0:03:00.7]} 3... Nf6 {[%clk 0:03:01]} 4.
Nc3 {[%clk 0:03:00.8]} 4... Bb4 {[%clk 0:03:01.4]} 5. cxd5 {[%clk 0:02:45.5]}
5... exd5 {[%clk 0:03:02.3]} 6. Bg5 {[%clk 0:02:45.7]} 6... h6 {[%clk
0:03:02.7]} 7. Bh4 {[%clk 0:02:44.6]} 7... O-O {[%clk 0:03:03.2]} 8. e3 {[%clk
0:02:43.1]} 8... Bf5 {[%clk 0:03:03.8]} 9. Nd2 {[%clk 0:02:40]} 9... Nbd7 {[%clk
0:02:57.5]} 10. Nxd5 {[%clk 0:02:33.9]} 10... Ba5 {[%clk 0:02:24.8]} 11. b4
{[%clk 0:02:04.3]} 11... Bb6 {[%clk 0:02:15.1]} 12. Nxb6 {[%clk 0:02:01.6]}
12... axb6 {[%clk 0:02:16]} 13. Be2 {[%clk 0:01:57.4]} 13... Qe7 {[%clk
0:02:09.5]} 14. a3 {[%clk 0:01:52.8]} 14... c5 {[%clk 0:01:58.7]} 15. dxc5
{[%clk 0:01:49.1]} 15... bxc5 {[%clk 0:01:59.6]} 16. b5 {[%clk 0:01:49.3]} 16...
Ne5 {[%clk 0:01:53.9]} 17. O-O {[%clk 0:01:46.1]} 17... Rfd8 {[%clk 0:01:54.1]}
18. Qc1 {[%clk 0:01:45.5]} 18... Ra4 {[%clk 0:01:46.4]} 19. Bg3 {[%clk
0:01:34.2]} 19... Bd3 {[%clk 0:01:32.3]} 20. Bxd3 {[%clk 0:01:18.3]} 20... Nxd3
{[%clk 0:01:33.2]} 21. Qc2 {[%clk 0:01:14.4]} 21... Raa8 {[%clk 0:01:28.6]} 22.
Nc4 {[%clk 0:01:11.1]} 22... Ne4 {[%clk 0:01:12.4]} 23. Rfd1 {[%clk 0:00:58.1]}
23... Nxg3 {[%clk 0:01:03.2]} 24. Rxd3 {[%clk 0:00:57.5]} 24... Rxd3 {[%clk
0:00:57.9]} 25. Qxd3 {[%clk 0:00:58.4]} 25... Rd8 {[%clk 0:00:58.3]} 26. Qc2
{[%clk 0:00:52.8]} 26... Ne4 {[%clk 0:00:52.1]} 27. a4 {[%clk 0:00:47.3]} 27...
Qf6 {[%clk 0:00:49.6]} 28. Rc1 {[%clk 0:00:44.1]} 28... Nd6 {[%clk 0:00:23.7]}
29. Nxd6 {[%clk 0:00:27.2]} 29... Qxd6 {[%clk 0:00:24.6]} 30. h3 {[%clk
0:00:25.9]} 30... b6 {[%clk 0:00:25.2]} 31. Qc4 {[%clk 0:00:20.6]} 31... Qd2
{[%clk 0:00:24]} 32. Rc2 {[%clk 0:00:20.9]} 32... Qd1+ {[%clk 0:00:11.7]} 33.
Kh2 {[%clk 0:00:20.7]} 33... Qd6+ {[%clk 0:00:11.9]} 34. g3 {[%clk 0:00:20.6]}
34... Qd1 {[%clk 0:00:12.2]} 35. Qe2 {[%clk 0:00:15.2]} 35... Qxe2 {[%clk
0:00:07.9]} 36. Rxe2 {[%clk 0:00:15.4]} 36... Ra8 {[%clk 0:00:08.6]} 37. Ra2
{[%clk 0:00:15.7]} 37... c4 {[%clk 0:00:09.2]} 38. Kg2 {[%clk 0:00:14.4]} 38...
c3 {[%clk 0:00:09.5]} 39. Kf3 {[%clk 0:00:14.9]} 39... Rc8 {[%clk 0:00:06.9]}
40. Rc2 {[%clk 0:00:13]} 40... Rc4 {[%clk 0:00:07.6]} 41. Ke2 {[%clk 0:00:10.1]}
41... Rxa4 {[%clk 0:00:07.9]} 42. Rxc3 {[%clk 0:00:10.6]} 42... Rb4 {[%clk
0:00:08.6]} 43. Rc8+ {[%clk 0:00:10.2]} 43... Kh7 {[%clk 0:00:08.8]} 44. Rc7
{[%clk 0:00:10.9]} 44... f6 {[%clk 0:00:09.4]} 45. Rb7 {[%clk 0:00:11]} 45...
Rxb5 {[%clk 0:00:09.9]} 46. Kf3 {[%clk 0:00:11.6]} 46... Rb3 {[%clk 0:00:10.2]}
47. h4 {[%clk 0:00:11.6]} 47... h5 {[%clk 0:00:10.1]} 48. g4 {[%clk 0:00:11.1]}
48... hxg4+ {[%clk 0:00:10.1]} 49. Kxg4 {[%clk 0:00:12]} 49... b5 {[%clk
0:00:10]} 50. f4 {[%clk 0:00:12.3]} 50... b4 {[%clk 0:00:10.5]} 51. Kf5 {[%clk
0:00:12]} 51... Rb1 {[%clk 0:00:11]} 52. e4 {[%clk 0:00:12.4]} 52... b3 {[%clk
0:00:11.3]} 53. e5 {[%clk 0:00:11]} 53... fxe5 {[%clk 0:00:12.2]} 54. fxe5
{[%clk 0:00:11.9]} 54... b2 {[%clk 0:00:11.4]} 55. Ke6 {[%clk 0:00:12.6]} 55...
Kg6 {[%clk 0:00:11.4]} 56. Rb4 {[%clk 0:00:07.8]} 56... Kh5 {[%clk 0:00:11.2]}
57. Ke7 {[%clk 0:00:05.9]} 57... Re1 {[%clk 0:00:10.7]} 58. Rxb2 {[%clk
0:00:06.3]} 58... Rxe5+ {[%clk 0:00:11.3]} 59. Kf7 {[%clk 0:00:06.8]} 59... g6
{[%clk 0:00:10.7]} 60. Rh2 {[%clk 0:00:06.8]} 60... Ra5 {[%clk 0:00:10.3]} 61.
Kg7 {[%clk 0:00:07]} 61... Ra7+ {[%clk 0:00:08.7]} 62. Kf6 {[%clk 0:00:07.2]}
62... Ra6+ {[%clk 0:00:09.4]} 63. Kf7 {[%clk 0:00:07.6]} 63... Rc6 {[%clk
0:00:08.9]} 64. Rg2 {[%clk 0:00:04.9]} 64... Rc7+ {[%clk 0:00:08.5]} 65. Kf6
{[%clk 0:00:04.7]} 65... Rc6+ {[%clk 0:00:09.1]} 66. Kf7 {[%clk 0:00:05.2]}
66... Ra6 {[%clk 0:00:03]} 67. Rg5+ {[%clk 0:00:05.1]} 67... Kh6 {[%clk
0:00:03.6]} 68. Rg4 {[%clk 0:00:05.1]} 68... Ra7+ {[%clk 0:00:04]} 69. Kf6
{[%clk 0:00:05.2]} 69... Ra6+ {[%clk 0:00:04.4]} 70. Kf7 {[%clk 0:00:05.7]}
70... Rb6 {[%clk 0:00:05.1]} 71. Rd4 {[%clk 0:00:05.9]} 71... Rb7+ {[%clk
0:00:04]} 72. Kf6 {[%clk 0:00:06.3]} 72... Rb1 {[%clk 0:00:04.3]} 73. Kf7 {[%clk
0:00:05.3]} 73... Rf1+ {[%clk 0:00:04.5]} 74. Kg8 {[%clk 0:00:05.7]} 74... Rf5
{[%clk 0:00:02.7]} 75. Rd7 {[%clk 0:00:05.6]} 75... Kh5 {[%clk 0:00:01.8]} 76.
Rh7+ {[%clk 0:00:05.9]} 76... Kg4 {[%clk 0:00:02.4]} 77. Kg7 {[%clk 0:00:06.5]}
77... Rh5 {[%clk 0:00:02.1]} 78. Rh6 {[%clk 0:00:03.5]} 78... Rxh4 {[%clk
0:00:01.7]} 79. Rxg6+ {[%clk 0:00:03.8]} 79... Kh3 {[%clk 0:00:02.4]} 80. Rf6
{[%clk 0:00:04.1]} 80... Rg4+ {[%clk 0:00:03.3]} 81. Kf7 {[%clk 0:00:05]} 81...
Rh4 {[%clk 0:00:03.9]} 82. Rg6 {[%clk 0:00:05.3]} 82... Rg4 {[%clk 0:00:04.1]}
83. Re6 {[%clk 0:00:06.2]} 83... Rh4 {[%clk 0:00:04.6]} 84. Ke7 {[%clk
0:00:07.1]} 84... Rf4 {[%clk 0:00:04.9]} 85. Rf6 {[%clk 0:00:08]} 85... Rxf6
{[%clk 0:00:05]} 86. Kxf6 {[%clk 0:00:08.9]} 1/2-1/2